bitfinex-derivatives/quotes_ETHF0:USTF0_20260121
["timestamp","ask_amount","ask_price","bid_price","bid_amount"]
[1768999937443,0.17085,2929.6,2928.8,1.41850187]
[1768999937635,0.17085,2929.5,2928.8,0.15799808]
[1768999938343,0.00290484,2929.8,2928.4,0.0030415]
[1768999938545,0.17086,2929.4,2928.4,0.0030415]
[1768999939146,0.17088,2929.1,2928.4,0.0030415]
[1768999940145,0.17085,2929.6,2928.4,0.16103958]
[1768999942142,0.17085,2929.6,2928.8,1.26050379]
[1768999942349,0.00290484,2929.8,2929.3,1.41850187]
[1768999942536,0.00290484,2929.8,2929.4,0.15799808]
[1768999943341,0.17081,2930.2,2929.4,0.15799808]
[1768999943946,0.08087805,2930.3,2928.5,3.06836698]
[1768999944248,0.17087,2929.2,2928.4,0.0030415]
[1768999944645,1.21418078,2930.1,2928.4,0.0030415]
[1768999944851,0.17091,2928.6,2927.7,0.15799808]
[1768999945248,1.21418078,2929.6,2927.1,4.32887077]
[1768999945249,0.17092,2928.4,2927.2,0.15799808]
[1768999945955,0.1739615,2928.4,2927.2,0.16106429]
[1768999947244,0.1739615,2928.4,2927.6,1.41850187]
[1768999947754,0.1739615,2928.4,2927.7,0.15799808]
[1768999954754,0.1739615,2928.4,2927.2,0.00306621]
[1768999954957,0.1739615,2928.4,2927.3,0.15799808]
[1768999955656,0.17094,2928.0,2927.3,0.15799808]
[1768999955858,0.17094,2928.0,2927.2,0.00306621]
[1768999958157,0.17095,2927.9,2927.2,0.00306621]
[1768999959157,0.17095,2927.9,2927.3,13.30458399]
[1768999959562,0.17095,2927.9,2927.2,0.00306621]
[1768999959957,0.17095,2927.9,2927.2,0.16106429]
[1768999960856,0.0030415,2928.4,2927.2,0.16106429]
[1768999961056,0.0030415,2928.4,2927.7,0.15799808]
[1768999965966,0.0030415,2928.4,2927.8,0.00512155]
[1768999969568,0.1739615,2928.4,2927.8,0.00512155]
[1768999970065,0.17094,2928.1,2927.3,0.14733354]
[1768999972970,0.00816305,2928.4,2927.3,0.14733354]
[1768999974271,0.00816305,2928.4,2927.4,13.30458399]
[1768999974569,0.17095,2927.9,2927.4,13.45191753]
[1768999974965,0.17095,2927.9,2927.4,0.14733354]
[1768999979073,0.17095,2927.8,2927.2,0.00306621]
[1768999980077,0.17096,2927.7,2927.2,0.00306621]
[1768999980272,0.17096,2927.7,2926.6,1.26050379]
[1768999980976,0.17096,2927.7,2926.4,3.43437]
[1768999981278,0.17096,2927.7,2926.5,0.14676595]
[1768999982672,0.17097,2927.5,2926.5,0.14676595]
[1768999983075,0.17097,2927.5,2926.7,0.00512155]
[1768999984174,0.17094,2928.0,2926.7,0.1518875]
[1768999984374,0.00816305,2928.4,2926.7,0.1518875]
[1768999984578,0.00816305,2928.4,2926.9,0.14676595]
[1768999985479,0.17908305,2928.4,2926.9,0.14676595]
[1768999986382,0.17092,2928.3,2926.9,0.14676595]
[1768999988378,0.17092,2928.3,2927.1,0.14676595]
[1768999989381,0.17092,2928.3,2927.2,13.45134994]
[1768999989583,0.17092,2928.3,2927.2,0.14676595]
[1768999991376,0.17093,2928.2,2927.2,0.14676595]
[1768999991677,0.00816305,2928.4,2926.8,0.14676595]
[1768999991883,0.8796996,2928.3,2926.8,0.14676595]
[1768999992180,0.8796996,2928.2,2926.8,0.14676595]
[1768999992382,0.17096,2927.7,2926.8,0.14676595]
[1768999992584,0.17096,2927.6,2926.7,0.00512155]
[1768999993587,0.12022059,2928.4,2926.7,0.00512155]
[1768999993588,0.17097,2927.5,2926.7,0.00512155]
[1768999994382,0.17094,2928.1,2926.7,0.1518875]
[1768999995883,0.17094,2928.1,2926.8,0.14953063]
[1768999996082,0.17094,2928.1,2926.9,0.14953063]
[1769000001889,0.17094,2928.0,2926.9,0.14953063]
[1769000012093,0.17094,2928.0,2927.1,0.14953063]
[1769000014392,0.00816305,2928.4,2927.1,0.14953063]
[1769000014588,0.00816305,2928.4,2927.2,0.14953063]
[1769000014792,0.17908305,2928.4,2927.2,0.14953063]
[1769000017798,0.17908305,2928.4,2927.3,0.14953063]
[1769000018498,0.17092,2928.3,2927.3,0.14953063]
[1769000018999,0.17093,2928.2,2927.0,0.14953063]
[1769000021304,0.17094,2928.0,2927.0,0.14953063]
[1769000022400,0.17095,2927.9,2927.0,0.14953063]
[1769000024492,0.17095,2927.8,2926.7,0.00512155]
[1769000025502,0.17095,2927.8,2926.9,2.45969693]
[1769000025904,0.17095,2927.8,2927.0,13.30458399]
[1769000026996,0.00816305,2928.4,2927.0,0.85667865]
[1769000027197,0.84839298,2928.3,2927.0,0.85667865]
[1769000027393,0.84839298,2928.2,2927.0,0.85667865]
[1769000027600,0.17095,2927.8,2927.0,0.85667865]
[1769000027800,0.00816305,2928.4,2927.0,0.85667865]
[1769000028001,0.84962233,2928.3,2927.0,0.85667865]
[1769000028201,0.84962233,2928.2,2927.0,0.85667865]
[1769000028403,0.17095,2927.8,2927.0,0.85667865]
[1769000028608,0.17092,2928.3,2927.4,0.85667865]
[1769000028810,1.21418078,2928.6,2927.4,0.85667865]
[1769000029007,1.80119725,2928.7,2927.4,0.85667865]
[1769000029008,0.17092,2928.3,2927.4,0.85667865]
[1769000029207,1.21418078,2928.9,2927.4,1.00632536]
[1769000029410,0.33623748,2928.8,2927.5,0.14964671]
[1769000029706,0.33623748,2928.7,2927.5,0.14964671]
[1769000029913,0.17092,2928.3,2927.5,0.14964671]
[1769000030212,0.00288621,2928.8,2927.5,0.14964671]
[1769000030213,0.00288621,2928.8,2927.8,0.85667865]
[1769000030912,0.17092,2928.3,2927.8,1.00632536]
[1769000031112,0.00288621,2928.8,2927.8,1.00632536]
[1769000032014,0.17092,2928.3,2927.9,0.14964671]
[1769000032312,1.21418078,2929.1,2927.9,0.14964671]
[1769000032508,0.33608406,2929.0,2927.9,0.14964671]
[1769000032812,0.00512155,2928.8,2928.2,0.00512155]
[1769000033520,0.1709,2928.6,2928.2,0.00512155]
[1769000033702,0.00512155,2928.8,2928.2,0.00512155]
[1769000034317,0.1709,2928.6,2928.2,0.00512155]
[1769000034511,1.21418078,2929.1,2928.2,0.00512155]
[1769000034707,1.21418078,2929.5,2928.2,0.8618002]
[1769000034913,0.17088,2929.1,2928.2,1.01144691]
[1769000035114,1.21418078,2929.6,2928.2,1.01144691]
[1769000035518,0.17088,2929.1,2928.3,0.14964671]
[1769000035719,1.21418078,2929.7,2928.3,0.14964671]
[1769000036420,0.17088,2929.1,2928.3,0.14964671]
[1769000037117,0.17088,2929.0,2928.3,0.14964671]
[1769000037320,0.17089,2928.9,2928.2,0.00512155]
[1769000038121,0.17089,2928.8,2928.2,0.00512155]
[1769000039622,0.17601155,2928.8,2928.2,0.00512155]
[1769000040126,0.17601155,2928.8,2928.3,13.30458399]
[1769000040519,0.17601155,2928.8,2928.2,0.00512155]
[1769000040722,0.17091,2928.6,2927.6,2.45969693]
[1769000040920,0.17091,2928.6,2927.5,2.59711693]
[1769000041516,0.00512155,2928.8,2927.6,0.13742]
[1769000041726,1.21418078,2929.6,2927.7,0.13742]
[1769000041931,0.17088,2929.1,2927.7,0.13742]
[1769000042129,2.07747385,2929.8,2927.9,0.13742]
[1769000042130,1.21418078,2929.8,2927.9,0.13742]
[1769000042432,0.17085,2929.6,2928.2,0.13742]
[1769000042732,0.17085,2929.5,2928.2,0.13742]
[1769000042931,0.17085,2929.5,2928.6,0.00512155]
[1769000043130,0.17085,2929.5,2928.6,0.00777986]
[1769000044828,0.17085,2929.5,2928.6,0.14519986]
[1769000045926,0.17084,2929.8,2928.6,0.14519986]
[1769000046329,0.17084,2929.7,2928.6,0.14519986]
[1769000048233,0.17085,2929.6,2928.6,0.14519986]
[1769000050033,0.28011875,2930.2,2928.6,0.14519986]
[1769000050228,0.17085,2929.6,2928.6,0.14519986]
[1769000050928,0.24346632,2930.4,2928.6,0.14519986]
[1769000051129,0.17085,2929.6,2928.6,0.14519986]
[1769000051637,0.1162745,2930.2,2928.6,0.14519986]
[1769000053540,0.17085,2929.6,2928.6,0.14519986]
[1769000058137,0.17085,2929.5,2928.6,0.14519986]
[1769000058338,0.17085,2929.5,2928.7,13.30458399]
[1769000058538,0.17086,2929.4,2928.7,13.30458399]
[1769000058739,0.17086,2929.4,2928.6,0.14519986]
[1769000059543,0.17088,2929.1,2928.6,0.00777986]
[1769000059839,0.11689743,2929.8,2928.6,0.00777986]
[1769000059840,0.17088,2929.0,2928.6,0.00777986]
[1769000060239,0.17088,2929.0,2928.2,0.14175613]
[1769000060442,0.17086,2929.4,2928.2,0.14175613]
[1769000060840,0.17086,2929.4,2928.9,0.85581078]
[1769000061044,0.17086,2929.3,2928.9,0.85581078]
[1769000061344,10.28889743,2930.0,2928.9,0.85835911]
[1769000061540,0.17598155,2929.4,2928.9,0.85835911]
[1769000061746,0.17086,2929.3,2928.9,0.51622911]
[1769000061948,0.17088,2929.1,2928.8,0.00512155]
[1769000062142,0.17088,2929.1,2928.6,0.85581078]
[1769000063041,0.17342833,2929.1,2928.6,0.86009547]
[1769000063241,0.17342833,2929.1,2928.6,0.86521702]
[1769000063545,0.17088,2929.1,2928.6,0.86521702]
[1769000063946,0.00512155,2929.4,2928.6,0.86521702]
[1769000064646,0.17088,2929.1,2928.6,0.86521702]
[1769000065043,0.00512155,2929.4,2928.6,0.86521702]
[1769000066546,0.17088,2929.1,2928.6,0.86521702]
[1769000066737,0.00512155,2929.4,2928.6,0.86521702]
[1769000067142,0.17088,2929.1,2928.6,0.86521702]
[1769000067349,0.00512155,2929.4,2928.6,0.86521702]
[1769000067745,0.17088,2929.1,2928.6,0.86521702]
[1769000067949,0.00512155,2929.4,2928.6,0.86521702]
[1769000068250,0.17088,2929.1,2928.6,1.00697315]
[1769000068548,0.00512155,2929.4,2928.6,1.00697315]
[1769000068938,0.17088,2929.1,2928.9,0.85581078]
[1769000069145,0.00512155,2929.4,2928.9,0.85581078]
[1769000069448,0.17088,2929.1,2928.9,0.85581078]
[1769000069651,0.00512155,2929.4,2928.9,0.85581078]
[1769000070539,0.17088,2929.1,2928.9,0.85581078]
[1769000070743,0.00512155,2929.4,2928.9,0.85581078]
[1769000071449,0.17088,2929.1,2928.9,0.85581078]
[1769000071649,0.00512155,2929.4,2928.9,0.85581078]
[1769000072551,1.33133975,2930.0,2928.9,0.85581078]
[1769000072753,1.16071795,2929.9,2928.9,0.85581078]
[1769000072951,0.17086,2929.4,2928.9,0.85581078]
[1769000075444,1.21418078,2930.0,2928.9,0.99756691]
[1769000075747,1.15989212,2929.9,2929.2,0.51066078]
[1769000075942,1.15989212,2929.8,2929.2,0.51066078]
[1769000076142,0.82579835,2929.7,2929.2,0.51066078]
[1769000076343,0.17085,2929.5,2929.2,0.51066078]
[1769000076544,0.17086,2929.4,2929.2,7.8e-07]
[1769000076846,1.21418078,2930.1,2929.2,7.8e-07]
[1769000077047,0.33407731,2930.0,2929.2,7.8e-07]
[1769000077248,1.15981509,2929.9,2929.2,7.8e-07]
[1769000077448,0.17086,2929.4,2929.2,0.14175691]
[1769000077651,0.17084,2929.7,2929.2,7.8e-07]
[1769000078547,11.38618078,2930.3,2929.5,0.85581078]
[1769000078845,1.16000118,2930.2,2929.5,0.85581078]
[1769000079047,1.16000118,2930.1,2929.5,0.85581078]
[1769000079251,0.82586629,2930.0,2929.5,0.85581078]
[1769000079549,0.17083,2929.9,2929.5,0.85581078]
[1769000079754,1.4576471,2930.4,2929.5,0.51171078]
[1769000079942,2.37420055,2930.3,2929.3,0.85581078]
[1769000080143,1.16001977,2930.2,2929.3,0.85581078]
[1769000080444,1.16001977,2930.1,2929.3,0.85581078]
[1769000080745,0.82589063,2930.0,2929.3,0.85581078]
[1769000080948,1.8776456,2930.4,2929.3,0.85581078]
[1769000081152,0.15035718,2930.2,2928.7,2.45969693]
[1769000081351,0.17086,2929.4,2928.8,0.85581078]
[1769000081653,0.15035718,2930.0,2928.8,0.85581078]
[1769000081854,0.00512155,2929.4,2928.8,0.85581078]
[1769000082046,0.17086,2929.4,2928.8,0.85581078]
[1769000082351,0.15035718,2930.0,2928.8,0.85581078]
[1769000082551,0.17086,2929.4,2928.8,0.85581078]
[1769000082844,0.15035718,2930.0,2928.8,0.85581078]
[1769000083049,0.82581413,2929.9,2928.8,0.85581078]
[1769000083348,0.15035718,2930.0,2928.8,0.85581078]
[1769000083550,0.17086,2929.4,2928.8,0.85581078]
[1769000083850,0.15035718,2930.0,2928.8,0.85581078]
[1769000084052,0.17086,2929.4,2928.8,0.85581078]
[1769000084354,0.15035718,2930.0,2929.1,0.85581078]
[1769000084554,0.82584418,2929.9,2929.1,0.85581078]
[1769000084849,0.17083,2929.9,2929.4,0.85581078]
[1769000085050,0.24346632,2930.4,2929.8,0.85581078]
[1769000085452,0.24346632,2930.4,2929.5,0.85581078]
[1769000086548,0.24346632,2930.4,2929.6,0.1380282]
[1769000087251,3.11318078,2930.9,2930.1,0.85581078]
[1769000087252,0.27062257,2930.9,2930.1,0.85581078]
[1769000087459,0.1708,2930.5,2930.1,0.85581078]
[1769000087953,0.1708,2930.5,2930.0,0.00512155]
[1769000090752,1.21418078,2931.3,2930.4,0.85581078]
[1769000090956,2.03463654,2931.4,2930.0,0.00512155]
[1769000090957,0.17078,2930.7,2930.2,0.85581078]
[1769000093262,0.13663654,2931.4,2930.2,0.99383898]
[1769000093451,0.17078,2930.8,2930.2,0.99383898]
[1769000094146,0.17078,2930.8,2930.2,0.85581078]
[1769000098149,5.13950987,2931.7,2930.6,0.85581078]
[1769000098360,5.28372414,2931.7,2930.6,0.85581078]
[1769000098561,0.17077,2931.0,2930.6,0.85581078]
[1769000099563,0.4204693,2931.7,2930.6,0.85581078]
[1769000099765,0.17078,2930.7,2930.1,0.85581078]
[1769000099963,0.17079,2930.6,2930.1,0.85581078]
[1769000100761,0.17081,2930.3,2930.0,0.00512155]
[1769000100960,0.17081,2930.2,2929.6,0.85581078]
[1769000101264,0.17081,2930.3,2929.6,0.85581078]
[1769000101668,0.17081,2930.3,2929.8,0.85581078]
[1769000102062,0.17081,2930.3,2929.8,0.86093233]
[1769000102370,0.14421427,2931.0,2929.8,0.86093233]
[1769000102960,0.17081,2930.3,2929.8,0.86093233]
[1769000103667,0.14421427,2931.0,2929.8,0.86093233]
[1769000104566,0.17081,2930.3,2929.8,0.86093233]
[1769000104867,0.17081,2930.3,2929.8,0.00512155]
[1769000106364,0.14421427,2931.0,2929.8,0.00512155]
[1769000106769,0.17081,2930.3,2929.8,0.00512155]
[1769000108182,0.14421427,2931.0,2929.8,0.00512155]
[1769000108979,0.17081,2930.3,2929.8,0.00512155]
[1769000109470,0.17081,2930.2,2929.8,0.00512155]
[1769000109674,0.14421427,2931.0,2929.8,0.00512155]
[1769000111567,0.1708,2930.5,2929.8,0.00512155]
[1769000111866,0.1708,2930.4,2929.8,0.00512155]
[1769000112271,0.14421427,2931.0,2929.8,0.00512155]
[1769000112468,0.17079,2930.6,2929.8,0.00512155]
[1769000112871,0.17079,2930.5,2929.8,0.00512155]
[1769000114277,1.35839505,2931.4,2929.9,13.30458399]
[1769000114472,0.17078,2930.8,2930.1,0.85525024]
[1769000114666,0.14421427,2931.4,2930.1,0.85525024]
[1769000114867,0.17078,2930.8,2930.1,0.99286413]
[1769000115070,0.14421427,2931.4,2930.1,0.99286413]
[1769000115272,0.17078,2930.8,2930.1,0.99286413]
[1769000115584,0.14421427,2931.4,2930.1,0.99286413]
[1769000115764,0.82660115,2931.3,2930.1,0.99286413]
[1769000116074,0.17078,2930.8,2930.1,0.99286413]
[1769000116272,4.31248447,2932.1,2930.1,0.99286413]
[1769000116273,1.83261275,2932.6,2930.4,4.17019741]
[1769000116473,0.1707,2932.2,2931.6,1.84061872]
[1769000116676,0.1707,2932.2,2931.6,0.00321958]
[1769000116868,1.898,2932.6,2930.8,2.45969693]
[1769000117065,0.32231517,2932.5,2930.5,2.45969693]
[1769000117268,0.32231517,2932.4,2930.4,3.31494717]
[1769000117474,0.17072,2931.8,2930.4,3.31494717]
[1769000117876,0.17393958,2931.8,2930.4,3.31830068]
[1769000118368,0.13989009,2931.7,2930.4,3.31830068]
[1769000118774,0.13989009,2931.7,2930.8,0.00512155]
[1769000121081,0.13989009,2932.1,2930.8,0.00512155]
[1769000121678,0.13989009,2931.7,2930.8,0.00512155]
[1769000122283,0.14501164,2931.5,2930.8,0.00512155]
[1769000122582,0.14501164,2931.5,2930.4,0.00335351]
[1769000122881,0.27147473,2933.0,2930.8,0.85525024]
[1769000123084,0.9146239,2933.5,2930.8,0.85525024]
[1769000123085,0.17071,2931.9,2930.8,0.85525024]
[1769000124384,1.897,2932.0,2930.4,0.85860375]
[1769000124584,1.897,2931.9,2930.4,0.85860375]
[1769000124882,0.31062009,2931.7,2930.4,0.85860375]
[1769000125076,0.13989009,2931.6,2930.4,0.85860375]
[1769000125276,0.31062009,2931.6,2930.4,0.85860375]
[1769000125580,0.13989009,2931.5,2930.4,0.85860375]
[1769000125975,0.31063009,2931.5,2930.4,0.00335351]
[1769000126180,0.31064009,2931.4,2930.4,0.00335351]
[1769000126877,0.13989009,2931.3,2930.6,0.00512155]
[1769000127573,0.13989009,2931.1,2930.6,0.00512155]
[1769000128177,0.13989009,2931.1,2930.4,0.00335351]
[1769000129884,10.172,2932.2,2930.4,0.00335351]
[1769000130094,0.17065,2932.9,2932.0,0.85525024]
[1769000130284,1.897,2933.3,2931.6,0.85525024]
[1769000130485,0.17065,2933.0,2931.6,0.85525024]
[1769000130682,0.17067,2932.6,2931.2,0.85525024]
[1769000130885,0.17068,2932.5,2931.2,0.85525024]
[1769000131081,0.17068,2932.5,2931.6,0.00512155]
[1769000131278,0.17065,2933.0,2932.0,0.85525024]
[1769000131573,0.17065,2933.0,2931.6,0.00512155]
[1769000131574,0.17068,2932.5,2931.6,0.00512155]
[1769000131982,0.17069,2932.4,2931.6,0.00512155]
[1769000133384,0.1707,2932.2,2930.8,0.85525024]
[1769000133694,0.31059009,2932.2,2930.8,0.85525024]
[1769000134283,0.1707,2932.1,2930.8,0.85525024]
[1769000135587,0.17071,2932.0,2930.8,0.85525024]
[1769000136587,0.13989009,2932.2,2930.8,0.85525024]
[1769000136588,0.17071,2931.9,2930.8,0.85525024]
[1769000136790,2.06771,2931.9,2930.8,0.85525024]
[1769000137291,0.17071,2931.9,2930.8,0.85525024]
[1769000137688,1.897,2932.0,2930.8,0.85525024]
[1769000138589,0.17072,2931.9,2930.8,0.85525024]
[1769000138991,0.17072,2931.8,2930.6,0.14806176]
[1769000139890,0.17072,2931.8,2930.6,1.98094681]
[1769000140086,0.17072,2931.8,2930.7,1.83288505]
[1769000141694,0.17072,2931.8,2930.8,1.83288505]
[1769000142790,0.17072,2931.7,2930.7,1.83288505]
[1769000143294,0.17072,2931.7,2930.8,1.83288505]
[1769000145197,0.17072,2931.7,2930.9,1.83288505]
[1769000145592,0.17072,2931.7,2930.8,1.83288505]
[1769000146290,0.31059009,2932.2,2930.9,1.83288505]
[1769000146596,2.0677,2932.1,2931.1,1.22524464]
[1769000146897,0.1707,2932.1,2931.1,1.22524464]
[1769000147098,1.897,2932.0,2931.1,1.22524464]
[1769000147299,0.1707,2932.1,2931.1,1.22524464]
[1769000147496,2.0677,2932.1,2931.1,1.22524464]
[1769000148192,0.17071,2932.0,2931.1,1.22524464]
[1769000148398,0.17073,2931.7,2931.1,1.22524464]
[1769000148598,0.17073,2931.7,2930.9,1.22524464]
[1769000150492,0.17073,2931.7,2931.0,0.00512155]
[1769000150896,0.17073,2931.6,2931.0,0.00512155]
[1769000151098,2.06773,2931.6,2931.0,0.00512155]
[1769000151594,2.06773,2931.6,2931.0,1.23036619]
[1769000153199,0.17073,2931.6,2931.0,0.00512155]
[1769000154300,2.06773,2931.6,2931.0,0.00512155]
[1769000155300,0.17074,2931.5,2931.0,0.00512155]
[1769000158804,0.17074,2931.5,2930.9,1.22524464]
[1769000159199,2.06774,2931.5,2931.0,1.22524464]
[1769000159700,0.17076,2931.2,2931.0,0.59462485]
[1769000160006,0.17077,2931.0,2930.4,0.00335351]
[1769000160307,0.17077,2931.0,2930.6,13.30458399]
[1769000160807,0.17077,2931.0,2930.4,0.00335351]
[1769000161207,1.897,2931.1,2930.4,0.00335351]
[1769000161902,0.17077,2930.9,2930.4,0.00335351]
[1769000162305,2.07731457,2932.2,2930.4,0.00335351]
[1769000162306,1.2227335,2932.2,2930.4,0.14496457]
[1769000162504,0.17076,2931.1,2930.4,0.14496457]
[1769000162804,0.17077,2931.0,2930.4,0.14496457]
[1769000163004,2.06777,2931.0,2930.4,0.14496457]
[1769000163805,0.17077,2931.0,2930.4,0.14496457]
[1769000164105,1.897,2931.3,2930.4,0.14496457]
[1769000164306,0.17075,2931.2,2930.4,0.14496457]
[1769000164499,10.172,2932.0,2930.6,0.14161106]
[1769000164697,1.897,2931.9,2930.6,0.14161106]
[1769000164906,1.897,2931.9,2930.6,0.99640036]
[1769000165297,0.17075,2931.2,2930.6,0.99640036]
[1769000167711,11.0267893,2932.1,2931.2,0.8547893]
[1769000167712,1.897,2931.8,2931.2,0.8547893]
[1769000169610,0.17073,2931.6,2931.2,0.8547893]
[1769000169805,1.897,2931.7,2931.2,0.8547893]
[1769000170011,0.17073,2931.6,2931.2,0.8547893]
[1769000171112,1.897,2931.7,2931.2,0.8547893]
[1769000171500,0.17073,2931.6,2931.2,0.8547893]
[1769000172207,0.00512155,2932.3,2931.2,0.8547893]
[1769000172512,1.897,2932.2,2931.2,0.8547893]
[1769000172708,0.17073,2931.7,2931.2,0.8547893]
[1769000173010,0.00512155,2932.3,2931.5,0.8547893]
[1769000174310,1.90212155,2932.3,2931.5,0.8547893]
[1769000174508,0.17073,2931.7,2931.5,0.8547893]
[1769000174707,1.90212155,2932.3,2931.5,0.8547893]
[1769000175712,0.17073,2931.7,2931.5,0.8547893]
[1769000175913,1.90212155,2932.3,2931.5,0.8547893]
[1769000176613,0.17073,2931.7,2931.5,0.8547893]
[1769000176810,1.90212155,2932.3,2931.5,0.8547893]
[1769000177117,1.90212155,2932.3,2931.3,0.14161106]
[1769000177313,1.90212155,2932.3,2931.4,13.30458399]
[1769000177514,0.17073,2931.7,2931.4,13.30458399]
[1769000177723,1.90212155,2932.3,2931.3,0.14161106]
[1769000178511,0.17073,2931.7,2931.3,0.14161106]
[1769000178715,1.90212155,2932.3,2931.3,0.14161106]
[1769000179610,0.17073,2931.7,2931.3,0.14161106]
[1769000179813,1.90212155,2932.3,2931.3,0.14161106]
[1769000180607,0.17073,2931.7,2931.3,0.14161106]
[1769000180908,1.90212155,2932.3,2931.3,0.14161106]
[1769000181114,0.00512155,2932.3,2931.3,0.14161106]
[1769000181503,0.17073,2931.7,2931.3,0.14161106]
[1769000181708,0.00512155,2932.3,2931.3,0.14161106]
[1769000182417,0.17073,2931.7,2931.3,0.14161106]
[1769000182613,0.17581155,2932.3,2931.3,0.14161106]
[1769000182914,0.1707,2932.2,2931.3,0.14161106]
[1769000183315,0.00512155,2932.3,2931.3,0.14161106]
[1769000184018,0.1707,2932.2,2931.3,0.14161106]
[1769000184722,0.00512155,2932.3,2931.3,0.14161106]
[1769000184915,0.14722045,2933.0,2931.3,0.14161106]
[1769000185220,0.17069,2932.3,2931.3,0.14161106]
[1769000185516,1.897,2932.9,2931.3,0.14161106]
[1769000185711,0.17068,2932.4,2931.3,0.14161106]
[1769000186017,0.00512155,2932.1,2931.3,0.14161106]
[1769000186216,1.897,2932.9,2931.6,0.00512155]
[1769000186414,0.17069,2932.3,2931.6,0.00512155]
[1769000186619,2.04422045,2933.0,2931.6,0.00512155]
[1769000187522,0.17069,2932.3,2931.6,0.00512155]
[1769000187721,2.04422045,2933.0,2931.6,0.00512155]
[1769000187914,0.17068,2932.4,2931.6,0.00512155]
[1769000188120,0.17069,2932.3,2931.6,0.00512155]
[1769000188417,2.04422045,2933.0,2931.6,0.00512155]
[1769000189018,0.17069,2932.4,2931.6,0.00512155]
[1769000189615,0.00512155,2932.3,2931.6,0.00512155]
[1769000189816,0.17069,2932.4,2931.6,0.00512155]
[1769000190022,0.17069,2932.3,2931.6,0.00512155]
[1769000190220,2.04422045,2933.0,2931.6,0.00512155]
[1769000190420,0.17069,2932.3,2931.6,0.00512155]
[1769000190622,2.04422045,2933.0,2931.6,0.00512155]
[1769000191024,0.14716273,2932.9,2931.6,0.00512155]
[1769000191425,0.17068,2932.4,2931.6,0.00512155]
[1769000192224,0.14716273,2932.9,2931.6,0.00512155]
[1769000192828,0.17068,2932.4,2931.6,0.00512155]
[1769000193026,0.14716273,2932.9,2931.6,0.00512155]
[1769000193920,0.17068,2932.4,2931.6,0.00512155]
[1769000194121,0.14716273,2932.9,2931.6,0.00512155]
[1769000194427,0.17067,2932.7,2931.6,0.14654304]
[1769000194628,0.14716273,2933.2,2931.7,14.56270838]
[1769000194820,2.04416273,2933.2,2931.7,14.56270838]
[1769000195021,0.14716273,2933.2,2931.7,1.25812439]
[1769000195230,0.17067,2932.7,2931.7,1.25812439]
[1769000195436,2.04416273,2933.2,2931.7,1.25812439]
[1769000195932,0.17067,2932.7,2931.7,1.25812439]
[1769000196430,1.2227335,2933.6,2931.8,0.14142149]
[1769000196636,0.17062,2933.6,2932.7,1.25812439]
[1769000196830,0.17061,2933.6,2932.7,0.00263308]
[1769000198939,0.14716273,2933.9,2933.2,0.85330493]
[1769000199534,0.17061,2933.6,2933.3,1.55e-06]
[1769000200539,0.17061,2933.6,2933.2,0.85330493]
[1769000201242,0.17064,2933.1,2932.7,0.00263308]
[1769000201451,0.31780273,2933.1,2932.7,0.00263308]
[1769000201741,0.17309876,2933.1,2932.6,0.85330493]
[1769000202533,0.14716273,2933.5,2932.6,0.85330493]
[1769000202940,0.14716273,2933.5,2932.6,0.85842648]
[1769000203739,0.17064,2933.1,2932.6,0.8610646]
[1769000204035,0.85330493,2933.6,2932.6,0.00775967]
[1769000204236,1.49248033,2934.3,2931.5,0.85330493]
[1769000204237,0.17066,2932.8,2932.4,0.85330493]
[1769000204428,0.00512155,2933.1,2932.4,0.85330493]
[1769000205342,0.00793399,2933.1,2932.4,0.85696373]
[1769000205540,0.17066,2932.8,2932.4,1.00487659]
[1769000205739,0.00793399,2933.1,2932.4,1.00487659]
[1769000206541,0.17066,2932.8,2932.4,1.00487659]
[1769000210743,0.00793399,2933.1,2932.4,1.00487659]
[1769000210931,0.00793399,2933.1,2932.5,13.30458399]
[1769000211544,0.17066,2932.8,2932.5,13.30458399]
[1769000212043,0.17066,2932.8,2932.4,1.00487659]
[1769000212643,0.17067,2932.7,2932.4,1.00487659]
[1769000213644,0.17067,2932.7,2932.4,0.15157166]
[1769000214247,0.17067,2932.7,2932.1,0.85330493]
[1769000215143,0.17067,2932.7,2932.1,0.85772667]
[1769000216447,0.00793399,2933.1,2932.1,0.49692667]
[1769000216742,0.17068,2932.5,2932.1,0.00442174]
[1769000219152,0.17068,2932.5,2931.9,0.85330493]
[1769000219346,0.17068,2932.4,2931.9,0.99949482]
[1769000220048,0.17068,2932.4,2931.9,1.00724614]
[1769000220349,0.85330493,2932.9,2931.9,0.00512155]
[1769000220546,0.81440446,2932.8,2931.4,0.85330493]
[1769000220753,0.1707,2932.1,2931.4,0.85330493]
[1769000220958,0.17071,2932.0,2931.4,0.85330493]
[1769000221149,0.9954194,2932.9,2931.4,0.85330493]
[1769000221349,0.17071,2932.0,2931.4,0.85330493]
[1769000221549,0.17071,2932.0,2931.4,0.85576704]
[1769000221852,11.1674194,2932.9,2931.4,0.85576704]
[1769000222063,0.81438362,2932.8,2931.4,0.85576704]
[1769000222250,0.9954194,2932.9,2931.9,1.55e-06]
[1769000222562,0.1707,2932.1,2931.9,1.55e-06]
[1769000222753,0.1707,2932.1,2931.4,0.85576704]
[1769000223152,0.17071,2932.0,2931.4,0.85576704]
[1769000223348,0.17071,2932.1,2931.4,0.85576704]
[1769000223553,0.17071,2932.0,2931.4,0.85576704]
[1769000223852,0.1707,2932.1,2931.4,0.85576704]
[1769000224760,0.17071,2932.0,2931.4,0.85576704]
[1769000224954,0.17071,2932.0,2931.4,0.00246211]
[1769000225257,0.1707,2932.1,2931.4,0.00246211]
[1769000225450,0.14211447,2932.9,2931.4,0.00246211]
[1769000225664,0.14211447,2932.7,2931.4,0.00246211]
[1769000225854,0.17073,2931.6,2931.4,0.00246211]
[1769000226049,10.172,2932.5,2931.0,1.0]
[1769000226254,0.17073,2931.6,2931.1,13.30458399]
[1769000226454,0.17073,2931.6,2931.1,13.45077388]
[1769000226455,0.17585155,2931.6,2931.1,13.45077388]
[1769000226753,0.17074,2931.5,2931.0,1.0]
[1769000226952,0.00512155,2931.6,2931.1,0.0034292]
[1769000228561,0.17073,2931.7,2931.1,0.0034292]
[1769000229664,0.17585155,2931.7,2931.1,0.0034292]
[1769000230163,0.17073,2931.6,2931.1,0.14961909]
[1769000230461,0.00512155,2931.7,2931.1,0.14961909]
[1769000230664,0.17073,2931.6,2931.1,0.14961909]
[1769000230860,0.00512155,2931.7,2931.1,0.14961909]
[1769000231063,0.17073,2931.6,2931.1,0.14961909]
[1769000231261,10.172,2932.5,2931.1,0.14961909]
[1769000231564,0.17073,2931.7,2931.1,0.14961909]
[1769000231753,1.897,2932.4,2931.1,0.14961909]